[Event "*** Titled Tuesday Blitz"]
[Site "Chess.com"]
[Date "2019.12.03"]
[Round "3"]
[White "Radzio1987"]
[Black "ShahMatKanal"]
[Result "1-0"]
[WhiteElo "2877"]
[BlackElo "2482"]
[TimeControl "180+2"]
[EndTime "13:37:34 PST"]
[Termination "Radzio1987 won by resignation"]

1. c4 {[%clk 0:03:01.9]} 1... e6 {[%clk 0:02:59.5]} 2. Nc3 {[%clk 0:03:02.2]}
2... d5 {[%clk 0:02:59.6]} 3. d4 {[%clk 0:03:03.3]} 3... Nf6 {[%clk 0:02:55.5]}
4. cxd5 {[%clk 0:03:01.9]} 4... exd5 {[%clk 0:02:56.3]} 5. Bg5 {[%clk
0:03:02.4]} 5... c6 {[%clk 0:02:57.2]} 6. e3 {[%clk 0:03:03.3]} 6... Qb6 {[%clk
0:02:51.5]} 7. Qc2 {[%clk 0:02:57.1]} 7... Ne4 {[%clk 0:02:46.5]} 8. Bf4 {[%clk
0:02:10.3]} 8... Nxc3 {[%clk 0:02:20]} 9. bxc3 {[%clk 0:02:10]} 9... Nd7 {[%clk
0:02:15.3]} 10. Bd3 {[%clk 0:02:10.7]} 10... Nf6 {[%clk 0:02:15]} 11. Ne2 {[%clk
0:02:11.4]} 11... Qd8 {[%clk 0:02:12.6]} 12. O-O {[%clk 0:02:11.1]} 12... Bd6
{[%clk 0:02:13]} 13. c4 {[%clk 0:02:08.4]} 13... Bxf4 {[%clk 0:02:11.3]} 14.
Nxf4 {[%clk 0:02:10.3]} 14... dxc4 {[%clk 0:02:11.6]} 15. Bxc4 {[%clk
0:02:10.6]} 15... O-O {[%clk 0:02:13]} 16. Rad1 {[%clk 0:02:07.1]} 16... Qa5
{[%clk 0:01:58.7]} 17. e4 {[%clk 0:01:59.1]} 17... Qg5 {[%clk 0:01:53.8]} 18. g3
{[%clk 0:01:58.7]} 18... h5 {[%clk 0:01:44.6]} 19. h4 {[%clk 0:01:56.5]} 19...
Qh6 {[%clk 0:01:34.9]} 20. e5 {[%clk 0:01:56.9]} 20... Ng4 {[%clk 0:01:33]} 21.
Qe4 {[%clk 0:01:55.3]} 21... g5 {[%clk 0:01:10]} 22. Ng2 {[%clk 0:01:44.1]}
22... gxh4 {[%clk 0:00:57]} 23. Nxh4 {[%clk 0:01:46]} 23... Qh7 {[%clk
0:00:52.2]} 24. Qf4 {[%clk 0:01:35]} 24... Be6 {[%clk 0:00:45.4]} 25. Bxe6
{[%clk 0:01:21.6]} 25... fxe6 {[%clk 0:00:45.8]} 26. Qg5+ {[%clk 0:01:22.7]}
26... Qg7 {[%clk 0:00:40.9]} 27. Qxh5 {[%clk 0:01:21.1]} 27... Nh6 {[%clk
0:00:15]} 28. Kg2 {[%clk 0:01:16.4]} 28... Nf5 {[%clk 0:00:12.4]} 29. Ng6 {[%clk
0:01:13.6]} 29... Rfd8 {[%clk 0:00:05.7]} 30. Rh1 {[%clk 0:01:13.3]} 30... Rxd4
{[%clk 0:00:03.7]} 31. Rxd4 {[%clk 0:01:13.4]} 31... Nxd4 {[%clk 0:00:04.5]} 32.
Qh8+ {[%clk 0:01:06.4]} 32... Qxh8 {[%clk 0:00:05.4]} 33. Rxh8+ {[%clk 0:01:08]}
33... Kg7 {[%clk 0:00:06.7]} 34. Rxa8 {[%clk 0:01:09.4]} 34... Kxg6 {[%clk
0:00:08.1]} 35. Rxa7 {[%clk 0:01:10.5]} 35... b5 {[%clk 0:00:07.3]} 36. g4
{[%clk 0:01:05.7]} 36... Kg5 {[%clk 0:00:03.9]} 37. Kg3 {[%clk 0:01:06.8]} 37...
Ne2+ {[%clk 0:00:04.1]} 38. Kf3 {[%clk 0:01:07.8]} 38... Ng1+ {[%clk 0:00:04.3]}
39. Ke4 {[%clk 0:01:08.7]} 39... Nh3 {[%clk 0:00:02.9]} 40. f3 {[%clk
0:01:03.6]} 40... Nf2+ {[%clk 0:00:03.2]} 41. Ke3 {[%clk 0:01:04.4]} 41... Nd1+
{[%clk 0:00:04.2]} 42. Kd4 {[%clk 0:01:05.6]} 1-0

[Event "*** Titled Tuesday Blitz"]
[Site "Chess.com"]
[Date "2019.12.03"]
[Round "3"]
[White "kuli4ik"]
[Black "pulvettd"]
[Result "1-0"]
[WhiteElo "2817"]
[BlackElo "2615"]
[TimeControl "180+2"]
[EndTime "13:37:36 PST"]
[Termination "kuli4ik won by checkmate"]

1. Nf3 {[%clk 0:03:01.9]} 1... c6 {[%clk 0:03:01.9]} 2. g3 {[%clk 0:03:02.3]}
2... d5 {[%clk 0:03:01.9]} 3. Bg2 {[%clk 0:03:04.2]} 3... Nf6 {[%clk 0:03:02.7]}
4. O-O {[%clk 0:03:04.5]} 4... Bf5 {[%clk 0:03:04.2]} 5. c4 {[%clk 0:03:05.5]}
5... h6 {[%clk 0:03:05.4]} 6. cxd5 {[%clk 0:03:06.1]} 6... cxd5 {[%clk
0:03:06.1]} 7. Qb3 {[%clk 0:03:03.9]} 7... Qb6 {[%clk 0:02:58.3]} 8. Nc3 {[%clk
0:02:58]} 8... e6 {[%clk 0:02:55.9]} 9. Qxb6 {[%clk 0:02:53.9]} 9... axb6 {[%clk
0:02:57.8]} 10. d3 {[%clk 0:02:55.4]} 10... Bc5 {[%clk 0:02:51.4]} 11. Nd2
{[%clk 0:02:40.5]} 11... Nc6 {[%clk 0:02:44.9]} 12. Nb3 {[%clk 0:02:40.6]} 12...
O-O {[%clk 0:02:37.2]} 13. Nb5 {[%clk 0:02:41.4]} 13... Rfd8 {[%clk 0:02:18.5]}
14. Bd2 {[%clk 0:02:40.4]} 14... e5 {[%clk 0:02:08.8]} 15. Rfc1 {[%clk 0:02:37]}
15... Bf8 {[%clk 0:02:04.8]} 16. h3 {[%clk 0:02:36.1]} 16... h5 {[%clk
0:01:56.4]} 17. Be3 {[%clk 0:02:35.1]} 17... d4 {[%clk 0:01:41.5]} 18. Bg5
{[%clk 0:02:34.2]} 18... Rdc8 {[%clk 0:01:40.8]} 19. Nd2 {[%clk 0:02:30.6]}
19... Be6 {[%clk 0:01:37]} 20. Nc4 {[%clk 0:02:27.6]} 20... Bxc4 {[%clk
0:01:03.2]} 21. Rxc4 {[%clk 0:02:27.2]} 21... Ra5 {[%clk 0:00:57]} 22. a4 {[%clk
0:02:26.9]} 22... Rca8 {[%clk 0:00:56.2]} 23. Nc7 {[%clk 0:02:12.1]} 23... Rc8
{[%clk 0:00:57.4]} 24. Bxf6 {[%clk 0:02:07.6]} 24... Rxc7 {[%clk 0:00:56.3]} 25.
Bd8 {[%clk 0:02:05.9]} 25... Rc8 {[%clk 0:00:47.5]} 26. Bxb6 {[%clk 0:02:05.8]}
26... Ra6 {[%clk 0:00:48.9]} 27. a5 {[%clk 0:02:05.9]} 27... Rca8 {[%clk
0:00:23.2]} 28. Bxc6 {[%clk 0:02:05]} 28... bxc6 {[%clk 0:00:25.1]} 29. Rxc6
{[%clk 0:01:59.5]} 29... Bb4 {[%clk 0:00:26.6]} 30. Kg2 {[%clk 0:01:41.5]} 30...
Bxa5 {[%clk 0:00:24]} 31. Rxa5 {[%clk 0:01:39.8]} 31... Rxa5 {[%clk 0:00:25.9]}
32. Bxa5 {[%clk 0:01:41.1]} 32... Rxa5 {[%clk 0:00:26.7]} 33. b4 {[%clk
0:01:42.6]} 33... Rb5 {[%clk 0:00:26.5]} 34. Rc5 {[%clk 0:01:41.2]} 34... Rxc5
{[%clk 0:00:20.5]} 35. bxc5 {[%clk 0:01:41.6]} 35... Kf8 {[%clk 0:00:22.4]} 36.
g4 {[%clk 0:01:38.9]} 36... hxg4 {[%clk 0:00:19]} 37. hxg4 {[%clk 0:01:39.7]}
37... Ke7 {[%clk 0:00:17.8]} 38. Kf3 {[%clk 0:01:39.4]} 38... f6 {[%clk
0:00:17.5]} 39. Ke4 {[%clk 0:01:37.8]} 39... Ke6 {[%clk 0:00:17.3]} 40. f4
{[%clk 0:01:34.2]} 40... exf4 {[%clk 0:00:12.9]} 41. Kxf4 {[%clk 0:01:29.9]}
41... g6 {[%clk 0:00:10.2]} 42. Ke4 {[%clk 0:01:30.7]} 42... g5 {[%clk
0:00:10.4]} 43. Kxd4 {[%clk 0:01:31.4]} 43... f5 {[%clk 0:00:11.5]} 44. gxf5+
{[%clk 0:01:31.9]} 44... Kxf5 {[%clk 0:00:13.4]} 45. Ke3 {[%clk 0:01:31.1]}
45... Ke5 {[%clk 0:00:14.6]} 46. d4+ {[%clk 0:01:31.6]} 46... Kd5 {[%clk
0:00:16.5]} 47. Kf3 {[%clk 0:01:32.5]} 47... g4+ {[%clk 0:00:16.5]} 48. Kxg4
{[%clk 0:01:32.5]} 48... Kxd4 {[%clk 0:00:17.5]} 49. c6 {[%clk 0:01:33.7]} 49...
Ke4 {[%clk 0:00:19.1]} 50. c7 {[%clk 0:01:35]} 50... Ke3 {[%clk 0:00:20.3]} 51.
c8=Q {[%clk 0:01:36.3]} 51... Kf2 {[%clk 0:00:21.6]} 52. Qc3 {[%clk 0:01:36.4]}
52... Kf1 {[%clk 0:00:22.4]} 53. e4 {[%clk 0:01:35.4]} 53... Kg1 {[%clk
0:00:23.3]} 54. Qd2 {[%clk 0:01:36.5]} 54... Kh1 {[%clk 0:00:22.4]} 55. Kg3
{[%clk 0:01:38.4]} 55... Kg1 {[%clk 0:00:20.9]} 56. Qd1# {[%clk 0:01:40.3]} 1-0

[Event "*** Titled Tuesday Blitz"]
[Site "Chess.com"]
[Date "2019.12.03"]
[Round "3"]
[White "MathiasWomacka"]
[Black "chiwii"]
[Result "1-0"]
[WhiteElo "2323"]
[BlackElo "1925"]
[TimeControl "180+2"]
[EndTime "13:37:38 PST"]
[Termination "MathiasWomacka won by resignation"]

1. e4 {[%clk 0:02:57.5]} 1... c5 {[%clk 0:03:00.4]} 2. Nf3 {[%clk 0:02:57]} 2...
e6 {[%clk 0:03:00.8]} 3. d4 {[%clk 0:02:58]} 3... cxd4 {[%clk 0:03:01.7]} 4.
Nxd4 {[%clk 0:02:59.9]} 4... a6 {[%clk 0:03:02.7]} 5. Bd3 {[%clk 0:02:54.9]}
5... Qc7 {[%clk 0:02:53.6]} 6. Qe2 {[%clk 0:02:54.4]} 6... d6 {[%clk 0:02:53.2]}
7. c4 {[%clk 0:02:54.6]} 7... Nf6 {[%clk 0:02:53.4]} 8. Nc3 {[%clk 0:02:55.7]}
8... Nc6 {[%clk 0:02:54.2]} 9. Nxc6 {[%clk 0:02:55.7]} 9... bxc6 {[%clk
0:02:56.1]} 10. O-O {[%clk 0:02:56.4]} 10... Be7 {[%clk 0:02:57.2]} 11. f4
{[%clk 0:02:52]} 11... e5 {[%clk 0:02:50.7]} 12. f5 {[%clk 0:02:50]} 12... Bb7
{[%clk 0:02:50]} 13. Be3 {[%clk 0:02:46.8]} 13... d5 {[%clk 0:02:26.8]} 14. cxd5
{[%clk 0:02:43.4]} 14... cxd5 {[%clk 0:02:26.1]} 15. exd5 {[%clk 0:02:41.5]}
15... Nxd5 {[%clk 0:02:27.3]} 16. Nxd5 {[%clk 0:02:41.3]} 16... Bxd5 {[%clk
0:02:29.2]} 17. Rac1 {[%clk 0:02:38]} 17... Qb7 {[%clk 0:02:28.5]} 18. f6 {[%clk
0:02:07.8]} 18... gxf6 {[%clk 0:02:25.4]} 19. Bf5 {[%clk 0:02:03.7]} 19... Rg8
{[%clk 0:02:22.6]} 20. Rf2 {[%clk 0:02:04.1]} 20... Rg7 {[%clk 0:02:16.4]} 21.
Qd2 {[%clk 0:01:41.1]} 21... Rd8 {[%clk 0:02:12.9]} 22. Qc2 {[%clk 0:01:24.7]}
22... Bxa2 {[%clk 0:01:57.2]} 23. Qa4+ {[%clk 0:01:21.7]} 23... Kf8 {[%clk
0:01:31.4]} 24. Qxa2 {[%clk 0:01:22.2]} 24... Qb5 {[%clk 0:01:00.3]} 25. b3
{[%clk 0:00:48.3]} 25... a5 {[%clk 0:00:52]} 26. Qc2 {[%clk 0:00:47.5]} 26...
Ke8 {[%clk 0:00:33.5]} 27. Be4 {[%clk 0:00:37.1]} 27... Qb4 {[%clk 0:00:24]} 28.
Qc6+ {[%clk 0:00:33.8]} 28... Kf8 {[%clk 0:00:25.1]} 29. Bh6 {[%clk 0:00:32]}
29... Qxb3 {[%clk 0:00:20.5]} 30. g3 {[%clk 0:00:27.3]} 30... Rd1+ {[%clk
0:00:14.3]} 31. Rxd1 {[%clk 0:00:27.9]} 31... Qxd1+ {[%clk 0:00:16.2]} 32. Kg2
{[%clk 0:00:29.4]} 32... Qd4 {[%clk 0:00:16.3]} 33. Qa8+ {[%clk 0:00:24.7]}
33... Bd8 {[%clk 0:00:16.8]} 34. Rd2 {[%clk 0:00:24.1]} 1-0

[Event "*** Titled Tuesday Blitz"]
[Site "Chess.com"]
[Date "2019.12.03"]
[Round "3"]
[White "JoakimVonAnd"]
[Black "PowerChessUtah"]
[Result "1-0"]
[WhiteElo "2389"]
[BlackElo "2201"]
[TimeControl "180+2"]
[EndTime "13:37:41 PST"]
[Termination "JoakimVonAnd won by checkmate"]

1. d4 {[%clk 0:03:01.9]} 1... Nf6 {[%clk 0:03:00.4]} 2. c4 {[%clk 0:03:01.5]}
2... e6 {[%clk 0:03:01.5]} 3. Nf3 {[%clk 0:02:58.6]} 3... Bb4+ {[%clk
0:03:01.9]} 4. Bd2 {[%clk 0:02:57.5]} 4... a5 {[%clk 0:03:03.1]} 5. a3 {[%clk
0:02:56.8]} 5... Be7 {[%clk 0:03:01.3]} 6. Nc3 {[%clk 0:02:50.8]} 6... b6 {[%clk
0:03:02.4]} 7. e4 {[%clk 0:02:50]} 7... Bb7 {[%clk 0:03:03.4]} 8. Bd3 {[%clk
0:02:49.9]} 8... d6 {[%clk 0:03:03.9]} 9. O-O {[%clk 0:02:50.4]} 9... O-O {[%clk
0:03:02.4]} 10. Qe2 {[%clk 0:02:43]} 10... Nbd7 {[%clk 0:03:00.3]} 11. e5 {[%clk
0:02:39.7]} 11... Ne8 {[%clk 0:03:01.1]} 12. Rad1 {[%clk 0:02:39]} 12... c5
{[%clk 0:03:01.5]} 13. Be3 {[%clk 0:02:28.5]} 13... cxd4 {[%clk 0:03:02]} 14.
Bxd4 {[%clk 0:02:18]} 14... dxe5 {[%clk 0:03:01.2]} 15. Nxe5 {[%clk 0:02:15.8]}
15... Nxe5 {[%clk 0:03:01.7]} 16. Bxe5 {[%clk 0:02:14.2]} 16... Qc8 {[%clk
0:02:59]} 17. Bb1 {[%clk 0:01:54.4]} 17... Bf6 {[%clk 0:02:58.3]} 18. Qd3 {[%clk
0:01:44]} 18... g6 {[%clk 0:02:58.1]} 19. Bg3 {[%clk 0:01:39.2]} 19... Qc6
{[%clk 0:02:56.3]} 20. Ne4 {[%clk 0:01:34.3]} 20... Bg7 {[%clk 0:02:56.6]} 21.
f3 {[%clk 0:01:27.5]} 21... Nf6 {[%clk 0:02:55.6]} 22. Nd6 {[%clk 0:01:23.5]}
22... Rfd8 {[%clk 0:02:54.3]} 23. Qe3 {[%clk 0:01:13.7]} 23... Nh5 {[%clk
0:02:48.3]} 24. Nxb7 {[%clk 0:01:06.8]} 24... Qxb7 {[%clk 0:02:50.2]} 25. Bf2
{[%clk 0:01:06.3]} 25... Bxb2 {[%clk 0:02:45.9]} 26. Rxd8+ {[%clk 0:01:01.2]}
26... Rxd8 {[%clk 0:02:46.4]} 27. Qxb6 {[%clk 0:01:02.9]} 27... Qxb6 {[%clk
0:02:46.3]} 28. Bxb6 {[%clk 0:01:01.4]} 28... Rc8 {[%clk 0:02:30]} 29. Bxa5
{[%clk 0:00:51.7]} 29... Rxc4 {[%clk 0:02:29.7]} 30. Bb4 {[%clk 0:00:52.4]}
30... Nf4 {[%clk 0:02:27.1]} 31. g3 {[%clk 0:00:44.9]} 31... Bd4+ {[%clk
0:02:22.7]} 32. Kh1 {[%clk 0:00:40.1]} 32... Nd5 {[%clk 0:02:23.6]} 33. Ba2
{[%clk 0:00:34.8]} 33... Rc2 {[%clk 0:02:23.7]} 34. Bxd5 {[%clk 0:00:32.3]}
34... exd5 {[%clk 0:02:25.6]} 35. Rd1 {[%clk 0:00:31.4]} 35... Bc3 {[%clk
0:02:23]} 36. Rxd5 {[%clk 0:00:30.4]} 36... Bxb4 {[%clk 0:02:23.7]} 37. axb4
{[%clk 0:00:32.3]} 37... Rb2 {[%clk 0:02:23.8]} 38. Rb5 {[%clk 0:00:33.1]} 38...
Kg7 {[%clk 0:02:23.7]} 39. Rb7 {[%clk 0:00:32.2]} 39... h5 {[%clk 0:02:22.9]}
40. b5 {[%clk 0:00:32.6]} 40... Kg8 {[%clk 0:02:23.9]} 41. b6 {[%clk 0:00:32.9]}
41... Kg7 {[%clk 0:02:25.3]} 42. Kg1 {[%clk 0:00:33.4]} 42... Kf6 {[%clk
0:02:25.8]} 43. h4 {[%clk 0:00:33.8]} 43... Ke6 {[%clk 0:02:24.2]} 44. Rb8
{[%clk 0:00:34.9]} 44... Kf5 {[%clk 0:02:21.7]} 45. Kf1 {[%clk 0:00:32.2]} 45...
Kf6 {[%clk 0:02:16]} 46. Ke1 {[%clk 0:00:31.1]} 46... Kf5 {[%clk 0:02:15.6]} 47.
Kd1 {[%clk 0:00:31.2]} 47... Kf6 {[%clk 0:02:15.5]} 48. Kc1 {[%clk 0:00:18.3]}
48... Rb3 {[%clk 0:02:16.1]} 49. Kc2 {[%clk 0:00:19.4]} 49... Rb5 {[%clk
0:02:09.7]} 50. Kc3 {[%clk 0:00:16.3]} 50... Kf5 {[%clk 0:02:10.7]} 51. Kc4
{[%clk 0:00:17]} 51... Rb1 {[%clk 0:02:10.2]} 52. Kc5 {[%clk 0:00:18.2]} 52...
Rb3 {[%clk 0:02:10.6]} 53. Rf8 {[%clk 0:00:17.6]} 53... f6 {[%clk 0:02:10.2]}
54. Kc6 {[%clk 0:00:18.2]} 54... Rxf3 {[%clk 0:02:11.2]} 55. b7 {[%clk
0:00:19.1]} 55... Rc3+ {[%clk 0:02:10.2]} 56. Kd5 {[%clk 0:00:19.5]} 56... Rd3+
{[%clk 0:02:11]} 57. Kc4 {[%clk 0:00:20.1]} 57... Rxg3 {[%clk 0:02:09.7]} 58.
b8=Q {[%clk 0:00:21]} 58... Rg4+ {[%clk 0:02:11.6]} 59. Kd3 {[%clk 0:00:21.6]}
59... Rxh4 {[%clk 0:02:13.5]} 60. Qb5+ {[%clk 0:00:21.4]} 60... Kg4 {[%clk
0:02:12.3]} 61. Rxf6 {[%clk 0:00:22.4]} 61... Rh3+ {[%clk 0:02:14.2]} 62. Ke2
{[%clk 0:00:22.8]} 62... g5 {[%clk 0:02:16.1]} 63. Qc4+ {[%clk 0:00:22.6]} 63...
Kg3 {[%clk 0:02:17.5]} 64. Rf3+ {[%clk 0:00:22.7]} 64... Kg2 {[%clk 0:02:18.5]}
65. Rxh3 {[%clk 0:00:22.6]} 65... Kxh3 {[%clk 0:02:20.4]} 66. Qe4 {[%clk
0:00:23.7]} 66... g4 {[%clk 0:02:20.5]} 67. Kf2 {[%clk 0:00:24.8]} 67... g3+
{[%clk 0:02:20.7]} 68. Kg1 {[%clk 0:00:25.9]} 68... h4 {[%clk 0:02:22.1]} 69.
Qf5# {[%clk 0:00:26.2]} 1-0

[Event "*** Titled Tuesday Blitz"]
[Site "Chess.com"]
[Date "2019.12.03"]
[Round "3"]
[White "r31415"]
[Black "resha1988"]
[Result "1-0"]
[WhiteElo "2462"]
[BlackElo "2746"]
[TimeControl "180+2"]
[EndTime "13:37:47 PST"]
[Termination "r31415 won by resignation"]

1. e4 {[%clk 0:03:01.9]} 1... c5 {[%clk 0:03:00.5]} 2. Nf3 {[%clk 0:03:03]} 2...
Nc6 {[%clk 0:02:57.4]} 3. d4 {[%clk 0:03:04.3]} 3... cxd4 {[%clk 0:02:58.6]} 4.
Nxd4 {[%clk 0:03:06.2]} 4... g6 {[%clk 0:02:55]} 5. Nc3 {[%clk 0:03:06.7]} 5...
Bg7 {[%clk 0:02:56]} 6. Nde2 {[%clk 0:03:08.3]} 6... Nf6 {[%clk 0:02:52.8]} 7.
h3 {[%clk 0:03:09.7]} 7... O-O {[%clk 0:02:51.8]} 8. g4 {[%clk 0:03:11.1]} 8...
d6 {[%clk 0:02:46.8]} 9. Bg2 {[%clk 0:03:12.4]} 9... Bd7 {[%clk 0:02:20.7]} 10.
O-O {[%clk 0:03:13.1]} 10... Rc8 {[%clk 0:02:21.9]} 11. Be3 {[%clk 0:03:13.6]}
11... Ne5 {[%clk 0:02:06.2]} 12. b3 {[%clk 0:03:14]} 12... Qa5 {[%clk
0:01:59.6]} 13. Qd2 {[%clk 0:03:14.6]} 13... Rfe8 {[%clk 0:01:41.6]} 14. f4
{[%clk 0:03:06.4]} 14... Nexg4 {[%clk 0:01:04.5]} 15. hxg4 {[%clk 0:03:06.9]}
15... Nxg4 {[%clk 0:01:06.4]} 16. Bd4 {[%clk 0:03:08.2]} 16... e5 {[%clk
0:01:06.6]} 17. fxe5 {[%clk 0:02:43.6]} 17... dxe5 {[%clk 0:00:49.4]} 18. Be3
{[%clk 0:02:32.5]} 18... Be6 {[%clk 0:00:33.1]} 19. Rac1 {[%clk 0:02:17.9]}
19... Bf8 {[%clk 0:00:29.5]} 20. Nd5 {[%clk 0:01:52.1]} 20... Qxa2 {[%clk
0:00:14.7]} 21. Kh1 {[%clk 0:01:14.8]} 21... Bxd5 {[%clk 0:00:06.6]} 22. exd5
{[%clk 0:01:15.6]} 22... Nxe3 {[%clk 0:00:07.7]} 23. Qxe3 {[%clk 0:01:16.7]}
23... Rxc2 {[%clk 0:00:09.2]} 24. Qf3 {[%clk 0:00:46.7]} 24... f5 {[%clk
0:00:08.2]} 25. Ra1 {[%clk 0:00:48]} 25... Qb2 {[%clk 0:00:08.6]} 26. Rfb1
{[%clk 0:00:48.9]} 26... Rxe2 {[%clk 0:00:07.2]} 27. Rxb2 {[%clk 0:00:49.8]}
27... Rxb2 {[%clk 0:00:09.1]} 28. Qc3 {[%clk 0:00:41.9]} 28... Rf2 {[%clk
0:00:05.7]} 29. Rxa7 {[%clk 0:00:37.3]} 29... e4 {[%clk 0:00:04.2]} 30. Rxb7
{[%clk 0:00:31.6]} 30... e3 {[%clk 0:00:05.5]} 31. d6 {[%clk 0:00:25.6]} 31...
Rxg2 {[%clk 0:00:03.8]} 32. Kxg2 {[%clk 0:00:26.3]} 32... e2 {[%clk 0:00:05.3]}
33. Qc4+ {[%clk 0:00:09.8]} 33... Kh8 {[%clk 0:00:04.7]} 34. Qf7 {[%clk
0:00:11.4]} 1-0

[Event "*** Titled Tuesday Blitz"]
[Site "Chess.com"]
[Date "2019.12.03"]
[Round "3"]
[White "kinga2008"]
[Black "kleopl"]
[Result "1-0"]
[WhiteElo "1979"]
[BlackElo "2491"]
[TimeControl "180+2"]
[EndTime "13:37:52 PST"]
[Termination "kinga2008 won by checkmate"]

1. e4 {[%clk 0:03:01.9]} 1... c6 {[%clk 0:03:00.4]} 2. d4 {[%clk 0:03:02.6]}
2... d5 {[%clk 0:03:01.6]} 3. exd5 {[%clk 0:02:51]} 3... cxd5 {[%clk 0:03:03.5]}
4. Nc3 {[%clk 0:02:45.8]} 4... Nf6 {[%clk 0:03:01.9]} 5. Nf3 {[%clk 0:02:44.2]}
5... Bg4 {[%clk 0:03:01.4]} 6. Bb5+ {[%clk 0:02:35.4]} 6... Nbd7 {[%clk
0:03:00.5]} 7. O-O {[%clk 0:02:17]} 7... a6 {[%clk 0:03:00.9]} 8. Be2 {[%clk
0:01:57.6]} 8... e6 {[%clk 0:03:00.9]} 9. Bg5 {[%clk 0:01:41.6]} 9... Be7 {[%clk
0:03:01]} 10. Ne5 {[%clk 0:01:22.8]} 10... Bxe2 {[%clk 0:02:59.2]} 11. Qxe2
{[%clk 0:01:22.4]} 11... O-O {[%clk 0:02:53.5]} 12. f4 {[%clk 0:01:20.6]} 12...
Re8 {[%clk 0:02:43.7]} 13. f5 {[%clk 0:01:17.4]} 13... exf5 {[%clk 0:02:25.1]}
14. Rxf5 {[%clk 0:01:04.1]} 14... h6 {[%clk 0:02:10.8]} 15. Bh4 {[%clk
0:00:55.9]} 15... b5 {[%clk 0:01:55]} 16. Nc6 {[%clk 0:00:48.3]} 16... Qb6
{[%clk 0:01:47.2]} 17. Nxe7+ {[%clk 0:00:41.8]} 17... Kf8 {[%clk 0:01:42.2]} 18.
Nexd5 {[%clk 0:00:23.7]} 18... Nxd5 {[%clk 0:01:32.2]} 19. Nxd5 {[%clk
0:00:20.5]} 19... Rxe2 {[%clk 0:01:30.1]} 20. Nxb6 {[%clk 0:00:21.4]} 20... Nxb6
{[%clk 0:01:32]} 21. Raf1 {[%clk 0:00:22.6]} 21... f6 {[%clk 0:01:30.8]} 22.
Bxf6 {[%clk 0:00:22]} 22... Kg8 {[%clk 0:01:21]} 23. Be5 {[%clk 0:00:14.9]}
23... Nd7 {[%clk 0:01:11.8]} 24. R5f2 {[%clk 0:00:13.6]} 24... Re4 {[%clk
0:01:10]} 25. Rf4 {[%clk 0:00:12]} 25... Re3 {[%clk 0:01:08.4]} 26. R4f3 {[%clk
0:00:08.1]} 26... Re2 {[%clk 0:01:05.8]} 27. R3f2 {[%clk 0:00:04.5]} 27... Rxe5
{[%clk 0:01:06.3]} 28. dxe5 {[%clk 0:00:05.3]} 28... Nxe5 {[%clk 0:01:08.2]} 29.
Re2 {[%clk 0:00:06.8]} 29... Nc4 {[%clk 0:01:09]} 30. b3 {[%clk 0:00:07.6]}
30... Nb6 {[%clk 0:01:09.6]} 31. Re7 {[%clk 0:00:08.7]} 31... Nd5 {[%clk
0:01:10.7]} 32. Rd7 {[%clk 0:00:09.5]} 32... Nf6 {[%clk 0:01:11.9]} 33. Rb7
{[%clk 0:00:10.2]} 33... Rc8 {[%clk 0:01:11.5]} 34. Rc1 {[%clk 0:00:09.2]} 34...
Rc6 {[%clk 0:01:10.7]} 35. c4 {[%clk 0:00:09.4]} 35... bxc4 {[%clk 0:01:10.4]}
36. Rxc4 {[%clk 0:00:10.4]} 36... Rd6 {[%clk 0:01:10.9]} 37. Rcc7 {[%clk
0:00:09.4]} 37... Ne4 {[%clk 0:00:59.6]} 38. Rxg7+ {[%clk 0:00:10]} 38... Kf8
{[%clk 0:01:00.6]} 39. Rbf7+ {[%clk 0:00:08.2]} 39... Ke8 {[%clk 0:01:01.7]} 40.
Re7+ {[%clk 0:00:09.4]} 40... Kf8 {[%clk 0:01:02.9]} 41. Rgf7+ {[%clk
0:00:09.4]} 41... Kg8 {[%clk 0:01:04]} 42. Ra7 {[%clk 0:00:06.9]} 42... Rd1+
{[%clk 0:00:59.5]} 43. Rf1 {[%clk 0:00:07.8]} 43... Rd6 {[%clk 0:01:01]} 44. Re1
{[%clk 0:00:07.8]} 44... Ng5 {[%clk 0:01:01.2]} 45. h4 {[%clk 0:00:07.9]} 45...
Nf7 {[%clk 0:00:59.6]} 46. Ree7 {[%clk 0:00:08.9]} 46... Nd8 {[%clk 0:00:58.3]}
47. Re8# {[%clk 0:00:08.8]} 1-0

[Event "*** Titled Tuesday Blitz"]
[Site "Chess.com"]
[Date "2019.12.03"]
[Round "3"]
[White "Qvalda"]
[Black "MajorCoast"]
[Result "1-0"]
[WhiteElo "2523"]
[BlackElo "2128"]
[TimeControl "180+2"]
[EndTime "13:37:55 PST"]
[Termination "Qvalda won by checkmate"]

1. d4 {[%clk 0:03:01.9]} 1... d5 {[%clk 0:03:00.7]} 2. Bf4 {[%clk 0:03:02.5]}
2... Nf6 {[%clk 0:03:01]} 3. e3 {[%clk 0:03:03.8]} 3... c5 {[%clk 0:03:02.4]} 4.
Nc3 {[%clk 0:02:59]} 4... cxd4 {[%clk 0:02:59.6]} 5. exd4 {[%clk 0:03:00.9]}
5... a6 {[%clk 0:03:00.4]} 6. Nf3 {[%clk 0:02:57.4]} 6... Nc6 {[%clk 0:03:01.2]}
7. Ne5 {[%clk 0:02:57.8]} 7... Bd7 {[%clk 0:02:49.4]} 8. Nxc6 {[%clk 0:02:45]}
8... Bxc6 {[%clk 0:02:49.5]} 9. Bd3 {[%clk 0:02:46.7]} 9... e6 {[%clk
0:02:49.3]} 10. O-O {[%clk 0:02:47.4]} 10... Bd6 {[%clk 0:02:50.1]} 11. Ne2
{[%clk 0:02:35.1]} 11... Bxf4 {[%clk 0:02:45.8]} 12. Nxf4 {[%clk 0:02:37]} 12...
Qd6 {[%clk 0:02:43.4]} 13. Qf3 {[%clk 0:02:31.9]} 13... O-O {[%clk 0:02:40.2]}
14. c3 {[%clk 0:02:29.3]} 14... b5 {[%clk 0:02:31.1]} 15. a3 {[%clk 0:02:27.6]}
15... a5 {[%clk 0:02:31.3]} 16. Rae1 {[%clk 0:02:28.5]} 16... b4 {[%clk
0:02:31.8]} 17. axb4 {[%clk 0:02:30.4]} 17... axb4 {[%clk 0:02:32.7]} 18. Nh5
{[%clk 0:02:15.7]} 18... Nxh5 {[%clk 0:02:18.9]} 19. Qxh5 {[%clk 0:02:17.6]}
19... g6 {[%clk 0:02:19]} 20. Qh6 {[%clk 0:02:13.9]} 20... bxc3 {[%clk
0:02:17.9]} 21. bxc3 {[%clk 0:02:15.8]} 21... Ra3 {[%clk 0:02:09.4]} 22. Re3
{[%clk 0:02:15.1]} 22... f5 {[%clk 0:01:32.5]} 23. h4 {[%clk 0:02:11.9]} 23...
Qe7 {[%clk 0:00:40.3]} 24. Rfe1 {[%clk 0:01:23.3]} 24... Bd7 {[%clk 0:00:40.6]}
25. c4 {[%clk 0:01:12.8]} 25... dxc4 {[%clk 0:00:33.6]} 26. Bxc4 {[%clk
0:01:14.7]} 26... Rxe3 {[%clk 0:00:34.8]} 27. Qxe3 {[%clk 0:00:51]} 27... Rf6
{[%clk 0:00:28.8]} 28. d5 {[%clk 0:00:47.4]} 28... Kf7 {[%clk 0:00:29.7]} 29. h5
{[%clk 0:00:42.9]} 29... Qd6 {[%clk 0:00:19]} 30. Qh6 {[%clk 0:00:30.6]} 30...
Kg8 {[%clk 0:00:14.7]} 31. dxe6 {[%clk 0:00:22.4]} 31... Bxe6 {[%clk 0:00:12.2]}
32. Rxe6 {[%clk 0:00:22.1]} 32... Rxe6 {[%clk 0:00:07.5]} 33. hxg6 {[%clk
0:00:23.3]} 33... Qd1+ {[%clk 0:00:07.4]} 34. Kh2 {[%clk 0:00:21.8]} 34... Qd6+
{[%clk 0:00:07.8]} 35. g3 {[%clk 0:00:21.6]} 35... hxg6 {[%clk 0:00:03.1]} 36.
Qxg6+ {[%clk 0:00:21.4]} 36... Kf8 {[%clk 0:00:04]} 37. Qxe6 {[%clk 0:00:21.2]}
37... Qd4 {[%clk 0:00:05.3]} 38. Qf7# {[%clk 0:00:21]} 1-0